Workbook

Sheet Лист1
A1: Школа | C1: МБОУ "Татарско-Суксиснкая ООШ" | F1: Утвердил: | G1: должность | H1: директор школы
A2: Типовое примерное меню приготавливаемых блюд | G2: фамилия | H2: Газизов Ф.Ф.
A3: Возрастная категория | E3: 7-11 лет | G3: дата | H3: 2
H4: день | I4: месяц | J4: год
A5: Неделя | B5: День недели | C5: Прием пищи | D5: Раздел меню | E5: Блюда | F5: Вес блюда, г | G5: Белки | H5: Жиры | I5: Углеводы | J5: Калорийность | K5: № рецептуры | L5: Цена
A6: 1 | B6: 1 | C6: Завтрак | D6: гор.блюдо | E6: Фрикадельки "Особые" в томатном соусе | F6: 100 | G6: 10 | H6: 12 | I6: 10 | J6: 186 | K6: 9 | L6: 26.7
D7: гор.блюдо | E7: Каша гречневая рассыпчатая | F7: 150 | G7: 9 | H7: 10 | I7: 40 | J7: 280 | K7: 171 | L7: 9.02
D8: гор.напиток | E8: Напиток из сухофруктов | F8: 200 | G8: 1 | H8: 0 | I8: 19 | J8: 80 | K8: 3 | L8: 7.36
D9: хлеб бел. | E9: Хлеб пшеничный | F9: 30 | G9: 2 | H9: 0 | I9: 15 | J9: 71 | K9: 1 | L9: 2.52
D10: хлеб черн. | E10: Хлеб ржаной (ржано-пшеничный) | F10: 20 | G10: 1 | H10: 0 | I10: 9 | J10: 44 | K10: 1 | L10: 1.68
D11: закуска | E11: Плоды и ягоды свежие (мандарины) | F11: 90 | G11: 1 | H11: 0 | I11: 17 | J11: 72 | K11: 41 | L11: 13.86
D12: закуска | E12: Сыр порциями | F12: 20 | G12: 4 | H12: 6 | I12: 0 | J12: 73 | K12: 15 | L12: 14.96
D13: итого | F13: =SUM(F6:F12) -> 610 | G13: =SUM(G6:G12) -> 27.28 | H13: =SUM(H6:H12) -> 28.46 | I13: =SUM(I6:I12) -> 110.36 | J13: =SUM(J6:J12) -> 806 | L13: =SUM(L6:L12) -> 76.1
A14: =A6 -> 1 | B14: =B6 -> 1 | C14: Завтрак 2 | D14: фрукты
D17: итого | F17: =SUM(F14:F16) -> 0 | G17: =SUM(G14:G16) -> 0 | H17: =SUM(H14:H16) -> 0 | I17: =SUM(I14:I16) -> 0 | J17: =SUM(J14:J16) -> 0 | L17: =SUM(L14:L22) -> 0
A18: =A6 -> 1 | B18: =B6 -> 1 | C18: Обед | D18: закуска
D19: 1 блюдо
D20: 2 блюдо
D21: гарнир
D22: напиток
D23: хлеб бел.
D24: хлеб черн.
D27: итого | F27: =SUM(F18:F26) -> 0 | G27: =SUM(G18:G26) -> 0 | H27: =SUM(H18:H26) -> 0 | I27: =SUM(I18:I26) -> 0 | J27: =SUM(J18:J26) -> 0 | L27: =SUM(L24:L32) -> 0
A28: =A6 -> 1 | B28: =B6 -> 1 | C28: Полдник | D28: булочное
D29: напиток
D32: итого | F32: =SUM(F28:F31) -> 0 | G32: =SUM(G28:G31) -> 0 | H32: =SUM(H28:H31) -> 0 | I32: =SUM(I28:I31) -> 0 | J32: =SUM(J28:J31) -> 0 | L32: =SUM(L25:L31) -> 0
A33: =A6 -> 1 | B33: =B6 -> 1 | C33: Ужин | D33: гор.блюдо
D34: гарнир
D35: напиток
D36: хлеб
D39: итого | F39: =SUM(F33:F38) -> 0 | G39: =SUM(G33:G38) -> 0 | H39: =SUM(H33:H38) -> 0 | I39: =SUM(I33:I38) -> 0 | J39: =SUM(J33:J38) -> 0 | L39: =SUM(L33:L41) -> 0
A40: =A6 -> 1 | B40: =B6 -> 1 | C40: Ужин 2 | D40: кисломол.
D41: булочное
D42: напиток
D43: фрукты
D46: итого | F46: =SUM(F40:F45) -> 0 | G46: =SUM(G40:G45) -> 0 | H46: =SUM(H40:H45) -> 0 | I46: =SUM(I40:I45) -> 0 | J46: =SUM(J40:J45) -> 0 | L46: =SUM(L40:L48) -> 0
A47: =A6 -> 1 | B47: =B6 -> 1 | C47: Итого за день: | F47: =F13+F17+F27+F32+F39+F46 -> 610 | G47: =G13+G17+G27+G32+G39+G46 -> 27.28 | H47: =H13+H17+H27+H32+H39+H46 -> 28.46 | I47: =I13+I17+I27+I32+I39+I46 -> 110.36 | J47: =J13+J17+J27+J32+J39+J46 -> 806 | L47: =L13+L17+L27+L32+L39+L46 -> 0
A48: 1 | B48: 2 | C48: Завтрак | D48: гор.блюдо | E48: Голубцы ленивые с соусом | F48: 200 | G48: 13 | H48: 22 | I48: 17 | J48: 320 | K48: 57 | L48: 56.45
D49: гор.напиток | E49: Чай с лимоном (полусладкий) | F49: 217 | G49: 0 | H49: 0 | I49: 15 | J49: 63 | K49: 377 | L49: 3.73
D50: хлеб бел. | E50: Хлеб пшеничный | F50: 30 | G50: 2 | H50: 0 | I50: 15 | J50: 71 | K50: 1 | L50: 2.52
D51: хлеб черн. | E51: Хлеб ржаной (ржано-пшеничный) | F51: 20 | G51: 1 | H51: 0 | I51: 9 | J51: 44 | K51: 1 | L51: 1.68
D52: закуска | E52: Салат из моркови с яблоками | F52: 60 | G52: 1 | H52: 3 | I52: 5 | J52: 49 | K52: 41 | L52: 8.07
D53: пром. | E53: Печенье | F53: 23 | G53: 2 | H53: 3 | I53: 21 | J53: 121 | K53: пром. | L53: 8.05
D55: итого | F55: =SUM(F48:F54) -> 550 | G55: =SUM(G48:G54) -> 19.56 | H55: =SUM(H48:H54) -> 28.5 | I55: =SUM(I48:I54) -> 82.23 | J55: =SUM(J48:J54) -> 668 | L55: =SUM(L48:L54) -> 80.5
A56: =A48 -> 1 | B56: =B48 -> 2 | C56: Завтрак 2 | D56: фрукты
D59: итого | F59: =SUM(F56:F58) -> 0 | G59: =SUM(G56:G58) -> 0 | H59: =SUM(H56:H58) -> 0 | I59: =SUM(I56:I58) -> 0 | J59: =SUM(J56:J58) -> 0 | L59: =SUM(L56:L64) -> 0
A60: =A48 -> 1 | B60: =B48 -> 2 | C60: Обед | D60: закуска
D61: 1 блюдо
D62: 2 блюдо
D63: гарнир
D64: напиток
D65: хлеб бел.
D66: хлеб черн.
D69: итого | F69: =SUM(F60:F68) -> 0 | G69: =SUM(G60:G68) -> 0 | H69: =SUM(H60:H68) -> 0 | I69: =SUM(I60:I68) -> 0 | J69: =SUM(J60:J68) -> 0 | L69: =SUM(L66:L74) -> 0
A70: =A48 -> 1 | B70: =B48 -> 2 | C70: Полдник | D70: булочное
D71: напиток
D74: итого | F74: =SUM(F70:F73) -> 0 | G74: =SUM(G70:G73) -> 0 | H74: =SUM(H70:H73) -> 0 | I74: =SUM(I70:I73) -> 0 | J74: =SUM(J70:J73) -> 0 | L74: =SUM(L67:L73) -> 0
A75: =A48 -> 1 | B75: =B48 -> 2 | C75: Ужин | D75: гор.блюдо
D76: гарнир
D77: напиток
D78: хлеб
D81: итого | F81: =SUM(F75:F80) -> 0 | G81: =SUM(G75:G80) -> 0 | H81: =SUM(H75:H80) -> 0 | I81: =SUM(I75:I80) -> 0 | J81: =SUM(J75:J80) -> 0 | L81: =SUM(L75:L83) -> 0
A82: =A48 -> 1 | B82: =B48 -> 2 | C82: Ужин 2 | D82: кисломол.
D83: булочное
D84: напиток
D85: фрукты
D88: итого | F88: =SUM(F82:F87) -> 0 | G88: =SUM(G82:G87) -> 0 | H88: =SUM(H82:H87) -> 0 | I88: =SUM(I82:I87) -> 0 | J88: =SUM(J82:J87) -> 0 | L88: =SUM(L82:L90) -> 0
A89: =A48 -> 1 | B89: =B48 -> 2 | C89: Итого за день: | F89: =F55+F59+F69+F74+F81+F88 -> 550 | G89: =G55+G59+G69+G74+G81+G88 -> 19.56 | H89: =H55+H59+H69+H74+H81+H88 -> 28.5 | I89: =I55+I59+I69+I74+I81+I88 -> 82.23 | J89: =J55+J59+J69+J74+J81+J88 -> 668 | L89: =L55+L59+L69+L74+L81+L88 -> 0
A90: 1 | B90: 3 | C90: Завтрак | D90: гор.блюдо | E90: Биточки Морячка с соусом томатным | F90: 100 | G90: 12 | H90: 5 | I90: 9 | J90: 136 | K90: 6 | L90: 27.02
D91: гор.блюдо | E91: Пюре картофельное | F91: 150 | G91: 3 | H91: 8 | I91: 22 | J91: 172 | K91: 312 | L91: 21.69
D92: гор.напиток | E92: Кисель | F92: 200 | G92: 0 | H92: 0 | I92: 26 | J92: 103 | K92: 648 | L92: 4.06
D93: хлеб бел. | E93: Хлеб пшеничный | F93: 30 | G93: 2 | H93: 0 | I93: 15 | J93: 71 | K93: 1 | L93: 2.52
D94: хлеб черн. | E94: Хлеб ржаной (ржано-пшеничный) | F94: 20 | G94: 1 | H94: 0 | I94: 9 | J94: 44 | K94: 1 | L94: 1.68
D95: закуска | E95: Салат из квашеной капусты | F95: 60 | G95: 1 | H95: 3 | I95: 5 | J95: 51 | K95: 47 | L95: 9.79
D97: итого | F97: =SUM(F90:F96) -> 560 | G97: =SUM(G90:G96) -> 19.28 | H97: =SUM(H90:H96) -> 16.44 | I97: =SUM(I90:I96) -> 85.76 | J97: =SUM(J90:J96) -> 576.95 | L97: =SUM(L90:L96) -> 66.76
A98: =A90 -> 1 | B98: =B90 -> 3 | C98: Завтрак 2 | D98: фрукты
D101: итого | F101: =SUM(F98:F100) -> 0 | G101: =SUM(G98:G100) -> 0 | H101: =SUM(H98:H100) -> 0 | I101: =SUM(I98:I100) -> 0 | J101: =SUM(J98:J100) -> 0 | L101: =SUM(L98:L106) -> 0
A102: =A90 -> 1 | B102: =B90 -> 3 | C102: Обед | D102: закуска
D103: 1 блюдо
D104: 2 блюдо
D105: гарнир
D106: напиток
D107: хлеб бел.
D108: хлеб черн.
D111: итого | F111: =SUM(F102:F110) -> 0 | G111: =SUM(G102:G110) -> 0 | H111: =SUM(H102:H110) -> 0 | I111: =SUM(I102:I110) -> 0 | J111: =SUM(J102:J110) -> 0 | L111: =SUM(L108:L116) -> 0
A112: =A90 -> 1 | B112: =B90 -> 3 | C112: Полдник | D112: булочное
D113: напиток
D116: итого | F116: =SUM(F112:F115) -> 0 | G116: =SUM(G112:G115) -> 0 | H116: =SUM(H112:H115) -> 0 | I116: =SUM(I112:I115) -> 0 | J116: =SUM(J112:J115) -> 0 | L116: =SUM(L109:L115) -> 0
A117: =A90 -> 1 | B117: =B90 -> 3 | C117: Ужин | D117: гор.блюдо
D118: гарнир
D119: напиток
D120: хлеб
D123: итого | F123: =SUM(F117:F122) -> 0 | G123: =SUM(G117:G122) -> 0 | H123: =SUM(H117:H122) -> 0 | I123: =SUM(I117:I122) -> 0 | J123: =SUM(J117:J122) -> 0 | L123: =SUM(L117:L125) -> 0
A124: =A90 -> 1 | B124: =B90 -> 3 | C124: Ужин 2 | D124: кисломол.
D125: булочное
D126: напиток
D127: фрукты
D130: итого | F130: =SUM(F124:F129) -> 0 | G130: =SUM(G124:G129) -> 0 | H130: =SUM(H124:H129) -> 0 | I130: =SUM(I124:I129) -> 0 | J130: =SUM(J124:J129) -> 0 | L130: =SUM(L124:L132) -> 0
A131: =A90 -> 1 | B131: =B90 -> 3 | C131: Итого за день: | F131: =F97+F101+F111+F116+F123+F130 -> 560 | G131: =G97+G101+G111+G116+G123+G130 -> 19.28 | H131: =H97+H101+H111+H116+H123+H130 -> 16.44 | I131: =I97+I101+I111+I116+I123+I130 -> 85.76 | J131: =J97+J101+J111+J116+J123+J130 -> 576.95 | L131: =L97+L101+L111+L116+L123+L130 -> 0
A132: 1 | B132: 4 | C132: Завтрак | D132: гор.блюдо | E132: Макаронные изделия отварные | F132: 150 | G132: 5 | H132: 4 | I132: 29 | J132: 187 | K132: 203 | L132: 7.73
D133: гор. Блюдо | E133: Мясо тушеное в соусе | F133: 100 | G133: 13 | H133: 17 | I133: 3 | J133: 225 | K133: 256 | L133: 54.12
D134: напиток | E134: Сок разливной | F134: 217 | G134: 1 | H134: 0 | I134: 24 | J134: 103 | K134: 389 | L134: 7
D135: хлеб бел. | E135: Хлеб пшеничный | F135: 30 | G135: 2 | H135: 0 | I135: 15 | J135: 71 | K135: 1 | L135: 2.52
D136: хлеб черн. | E136: Хлеб ржаной (ржано-пшеничный) | F136: 20 | G136: 1 | H136: 0 | I136: 9 | J136: 44 | K136: 1 | L136: 1.68
D137: закуска | E137: Салат "Зайка" | F137: 60 | G137: 1 | H137: 5 | I137: 4 | J137: 65 | K137: 473 | L137: 7.37
D139: итого | F139: =SUM(F132:F136) -> 517 | G139: =SUM(G132:G136) -> 22 | H139: =SUM(H132:H136) -> 21.5 | I139: =SUM(I132:I136) -> 80 | J139: =SUM(J132:J136) -> 630 | L139: =SUM(L132:L137) -> 80.42
A140: =A132 -> 1 | B140: =B132 -> 4 | C140: Завтрак 2 | D140: фрукты
D143: итого | F143: =SUM(F140:F142) -> 0 | G143: =SUM(G140:G142) -> 0 | H143: =SUM(H140:H142) -> 0 | I143: =SUM(I140:I142) -> 0 | J143: =SUM(J140:J142) -> 0 | L143: =SUM(L140:L148) -> 0
A144: =A132 -> 1 | B144: =B132 -> 4 | C144: Обед | D144: закуска
D145: 1 блюдо
D146: 2 блюдо
D147: гарнир
D148: напиток
D149: хлеб бел.
D150: хлеб черн.
D153: итого | F153: =SUM(F144:F152) -> 0 | G153: =SUM(G144:G152) -> 0 | H153: =SUM(H144:H152) -> 0 | I153: =SUM(I144:I152) -> 0 | J153: =SUM(J144:J152) -> 0 | L153: =SUM(L150:L158) -> 0
A154: =A132 -> 1 | B154: =B132 -> 4 | C154: Полдник | D154: булочное
D155: напиток
D158: итого | F158: =SUM(F154:F157) -> 0 | G158: =SUM(G154:G157) -> 0 | H158: =SUM(H154:H157) -> 0 | I158: =SUM(I154:I157) -> 0 | J158: =SUM(J154:J157) -> 0 | L158: =SUM(L151:L157) -> 0
A159: =A132 -> 1 | B159: =B132 -> 4 | C159: Ужин | D159: гор.блюдо
D160: гарнир
D161: напиток
D162: хлеб
D165: итого | F165: =SUM(F159:F164) -> 0 | G165: =SUM(G159:G164) -> 0 | H165: =SUM(H159:H164) -> 0 | I165: =SUM(I159:I164) -> 0 | J165: =SUM(J159:J164) -> 0 | L165: =SUM(L159:L167) -> 0
A166: =A132 -> 1 | B166: =B132 -> 4 | C166: Ужин 2 | D166: кисломол.
D167: булочное
D168: напиток
D169: фрукты
D172: итого | F172: =SUM(F166:F171) -> 0 | G172: =SUM(G166:G171) -> 0 | H172: =SUM(H166:H171) -> 0 | I172: =SUM(I166:I171) -> 0 | J172: =SUM(J166:J171) -> 0 | L172: =SUM(L166:L174) -> 0
A173: =A132 -> 1 | B173: =B132 -> 4 | C173: Итого за день: | F173: =F139+F143+F153+F158+F165+F172 -> 517 | G173: =G139+G143+G153+G158+G165+G172 -> 22 | H173: =H139+H143+H153+H158+H165+H172 -> 21.5 | I173: =I139+I143+I153+I158+I165+I172 -> 80 | J173: =J139+J143+J153+J158+J165+J172 -> 630 | L173: =L139+L143+L153+L158+L165+L172 -> 0
A174: 1 | B174: 5 | C174: Завтрак | D174: гор.блюдо | E174: Котлеты "Любимые" с соусом томатным | F174: 100 | G174: 8 | H174: 7 | I174: 15 | J174: 155 | K174: 37 | L174: 20.24
D175: гор.блюдо | E175: Капуста тушеная | F175: 150 | G175: 3 | H175: 5 | I175: 14 | J175: 113 | K175: 321 | L175: 23.44
D176: гор.напиток | E176: Какао с молоком | F176: 200 | G176: 3 | H176: 3 | I176: 17 | J176: 107 | K176: 198н | L176: 14.38
D177: хлеб бел. | E177: Хлеб пшеничный | F177: 30 | G177: 2 | H177: 0 | I177: 15 | J177: 71 | K177: 1 | L177: 2.52
D178: хлеб черн. | E178: Хлеб ржаной (ржано-пшеничный) | F178: 20 | G178: 1 | H178: 0 | I178: 9 | J178: 44 | K178: 1 | L178: 1.68
D179: закуска | E179: Плоды и ягоды свежие (яблоки) | F179: 100 | G179: 0 | H179: 0 | I179: 7 | J179: 47 | K179: 338 | L179: 15
D181: итого | F181: =SUM(F174:F180) -> 600 | G181: =SUM(G174:G180) -> 17.13 | H181: =SUM(H174:H180) -> 15.49 | I181: =SUM(I174:I180) -> 76.65 | J181: =SUM(J174:J180) -> 536.57 | L181: =SUM(L174:L180) -> 77.26
A182: =A174 -> 1 | B182: =B174 -> 5 | C182: Завтрак 2 | D182: фрукты
D185: итого | F185: =SUM(F182:F184) -> 0 | G185: =SUM(G182:G184) -> 0 | H185: =SUM(H182:H184) -> 0 | I185: =SUM(I182:I184) -> 0 | J185: =SUM(J182:J184) -> 0 | L185: =SUM(L182:L190) -> 0
A186: =A174 -> 1 | B186: =B174 -> 5 | C186: Обед | D186: закуска
D187: 1 блюдо
D188: 2 блюдо
D189: гарнир
D190: напиток
D191: хлеб бел.
D192: хлеб черн.
D195: итого | F195: =SUM(F186:F194) -> 0 | G195: =SUM(G186:G194) -> 0 | H195: =SUM(H186:H194) -> 0 | I195: =SUM(I186:I194) -> 0 | J195: =SUM(J186:J194) -> 0 | L195: =SUM(L192:L200) -> 0
A196: =A174 -> 1 | B196: =B174 -> 5 | C196: Полдник | D196: булочное
D197: напиток
D200: итого | F200: =SUM(F196:F199) -> 0 | G200: =SUM(G196:G199) -> 0 | H200: =SUM(H196:H199) -> 0 | I200: =SUM(I196:I199) -> 0 | J200: =SUM(J196:J199) -> 0 | L200: =SUM(L193:L199) -> 0
A201: =A174 -> 1 | B201: =B174 -> 5 | C201: Ужин | D201: гор.блюдо
D202: гарнир
D203: напиток
D204: хлеб
D207: итого | F207: =SUM(F201:F206) -> 0 | G207: =SUM(G201:G206) -> 0 | H207: =SUM(H201:H206) -> 0 | I207: =SUM(I201:I206) -> 0 | J207: =SUM(J201:J206) -> 0 | L207: =SUM(L201:L209) -> 0
A208: =A174 -> 1 | B208: =B174 -> 5 | C208: Ужин 2 | D208: кисломол.
D209: булочное
D210: напиток
D211: фрукты
D214: итого | F214: =SUM(F208:F213) -> 0 | G214: =SUM(G208:G213) -> 0 | H214: =SUM(H208:H213) -> 0 | I214: =SUM(I208:I213) -> 0 | J214: =SUM(J208:J213) -> 0 | L214: =SUM(L208:L216) -> 0
A215: =A174 -> 1 | B215: =B174 -> 5 | C215: Итого за день: | F215: =F181+F185+F195+F200+F207+F214 -> 600 | G215: =G181+G185+G195+G200+G207+G214 -> 17.13 | H215: =H181+H185+H195+H200+H207+H214 -> 15.49 | I215: =I181+I185+I195+I200+I207+I214 -> 76.65 | J215: =J181+J185+J195+J200+J207+J214 -> 536.57 | L215: =L181+L185+L195+L200+L207+L214 -> 0
A216: 1 | B216: 6 | C216: Завтрак | D216: гор.блюдо | E216: Сосиски отварные с соусом | F216: 100 | G216: 4 | H216: 8 | I216: 6 | J216: 109 | K216: 42 | L216: 20.41
D217: гор.блюдо | E217: Каша рисовая рассыпчатая | F217: 150 | G217: 4 | H217: 8 | I217: 39 | J217: 242 | K217: 171 | L217: 9.69
D218: гор.напиток | E218: Чай полусладкий | F218: 200 | G218: 0 | H218: 0 | I218: 5 | J218: 21 | K218: 1 | L218: 1.54
D219: хлеб бел. | E219: Хлеб пшеничный | F219: 30 | G219: 2 | H219: 0 | I219: 15 | J219: 71 | K219: 1 | L219: 2.52
D220: хлеб черн. | E220: Хлеб ржаной (ржано-пшеничный) | F220: 20 | G220: 1 | H220: 0 | I220: 9 | J220: 44 | K220: 1 | L220: 1.68
D221: закуска | E221: Салат из свежей капусты | F221: 60 | G221: 1 | H221: 2 | I221: 4 | J221: 36 | K221: 45 | L221: 7.18
D223: итого | F223: =SUM(F216:F222) -> 560 | G223: =SUM(G216:G222) -> 12.2 | H223: =H221+H220+H219+H218+H217+H216 -> 18 | I223: =SUM(I216:I222) -> 78.06 | J223: =SUM(J216:J222) -> 523.04 | L223: =SUM(L216:L222) -> 43.02
A224: =A216 -> 1 | B224: =B216 -> 6 | C224: Завтрак 2 | D224: фрукты
D227: итого | F227: =SUM(F224:F226) -> 0 | G227: =SUM(G224:G226) -> 0 | H227: =SUM(H224:H226) -> 0 | I227: =SUM(I224:I226) -> 0 | J227: =SUM(J224:J226) -> 0 | L227: =SUM(L224:L232) -> 0
A228: =A216 -> 1 | B228: =B216 -> 6 | C228: Обед | D228: закуска
D229: 1 блюдо
D230: 2 блюдо
D231: гарнир
D232: напиток
D233: хлеб бел.
D234: хлеб черн.
D237: итого | F237: =SUM(F228:F236) -> 0 | G237: =SUM(G228:G236) -> 0 | H237: =SUM(H228:H236) -> 0 | I237: =SUM(I228:I236) -> 0 | J237: =SUM(J228:J236) -> 0 | L237: =SUM(L234:L242) -> 0
A238: =A216 -> 1 | B238: =B216 -> 6 | C238: Полдник | D238: булочное
D239: напиток
D242: итого | F242: =SUM(F238:F241) -> 0 | G242: =SUM(G238:G241) -> 0 | H242: =SUM(H238:H241) -> 0 | I242: =SUM(I238:I241) -> 0 | J242: =SUM(J238:J241) -> 0 | L242: =SUM(L235:L241) -> 0
A243: =A216 -> 1 | B243: =B216 -> 6 | C243: Ужин | D243: гор.блюдо
D244: гарнир
D245: напиток
D246: хлеб
D249: итого | F249: =SUM(F243:F248) -> 0 | G249: =SUM(G243:G248) -> 0 | H249: =SUM(H243:H248) -> 0 | I249: =SUM(I243:I248) -> 0 | J249: =SUM(J243:J248) -> 0 | L249: =SUM(L243:L251) -> 0
A250: =A216 -> 1 | B250: =B216 -> 6 | C250: Ужин 2 | D250: кисломол.
D251: булочное
D252: напиток
D253: фрукты
D256: итого | F256: =SUM(F250:F255) -> 0 | G256: =SUM(G250:G255) -> 0 | H256: =SUM(H250:H255) -> 0 | I256: =SUM(I250:I255) -> 0 | J256: =SUM(J250:J255) -> 0 | L256: =SUM(L250:L258) -> 0
A257: =A216 -> 1 | B257: =B216 -> 6 | C257: Итого за день: | F257: =F223+F227+F237+F242+F249+F256 -> 560 | G257: =G223+G227+G237+G242+G249+G256 -> 12.2 | H257: =H223+H227+H237+H242+H249+H256 -> 18.44 | I257: =I223+I227+I237+I242+I249+I256 -> 78.06 | J257: =J223+J227+J237+J242+J249+J256 -> 523.04 | L257: =L223+L227+L237+L242+L249+L256 -> 0
A258: 1 | B258: 7 | C258: Завтрак | D258: гор.блюдо
D260: гор.напиток
D261: хлеб
D262: фрукты
D265: итого | F265: =SUM(F258:F264) -> 0 | G265: =SUM(G258:G264) -> 0 | H265: =SUM(H258:H264) -> 0 | I265: =SUM(I258:I264) -> 0 | J265: =SUM(J258:J264) -> 0 | L265: 0
A266: =A258 -> 1 | B266: =B258 -> 7 | C266: Завтрак 2 | D266: фрукты
D269: итого | F269: =SUM(F266:F268) -> 0 | G269: =SUM(G266:G268) -> 0 | H269: =SUM(H266:H268) -> 0 | I269: =SUM(I266:I268) -> 0 | J269: =SUM(J266:J268) -> 0 | L269: =SUM(L266:L274) -> 0
A270: =A258 -> 1 | B270: =B258 -> 7 | C270: Обед | D270: закуска
... 236 more rows
